lending/lending_fUSD_20240806
["ID","MTS","AMOUNT","RATE_DAILY","PERIOD"]
[334317418,1722961831912,-150.99,9.845e-05,2]
[334317419,1722961831921,-2857.68,9.845e-05,2]
[334317420,1722961831931,-9414.46,9.845e-05,2]
[334317421,1722961831941,-783.92,9.845e-05,2]
[334317422,1722961831950,-331.74,9.845e-05,2]
[334317423,1722961831964,-4987.05,9.845e-05,2]
[334317424,1722961831973,-321.39,9.845e-05,2]
[334317425,1722961831983,-321.39,9.848e-05,2]
[334317426,1722961831992,-321.39,9.85e-05,2]
[334317427,1722961832002,-321.39,9.853e-05,2]
[334317428,1722961832012,-321.39,9.855e-05,2]
[334317429,1722961832022,-321.39,9.858e-05,2]
[334317432,1722961832032,-321.39,9.861e-05,2]
[334317434,1722961832041,-321.39,9.863e-05,2]
[334317436,1722961832056,-321.39,9.866e-05,2]
[334317437,1722961832065,-321.39,9.868e-05,2]
[334317438,1722961832074,-321.39,9.871e-05,2]
[334317439,1722961832084,-321.39,9.873e-05,2]
[334317440,1722961832094,-321.39,9.876e-05,2]
[334317441,1722961832103,-321.39,9.879e-05,2]
[334317442,1722961832116,-174.18,0.0001,2]
[334317443,1722961832126,-1418.65421121,0.0001,2]
[334317444,1722961832135,-359.88074679,0.0001,2]
[334317445,1722961832145,-260.76,0.00010205,2]
[334317446,1722961832154,-1876.13214758,0.0001021,2]
[334317447,1722961832164,-791.39,0.00010243,2]
[334317448,1722961832173,-9032.81209199,0.000103,2]
[334317449,1722961832183,-4380.04183939,0.0001039,2]
[334317450,1722961832193,-160.96671388,0.00010397,2]
[334317451,1722961832203,-494.2753,0.000104,2]
[334317452,1722961832212,-224.9761,0.000104,2]
[334317453,1722961832222,-1200.781944,0.000104,2]
[334317454,1722961832231,-3294.8956,0.000104,2]
[334317455,1722961832241,-2080.2335,0.000104,2]
[334317456,1722961832250,-6690.0,0.000104,2]
[334317457,1722961832261,-4110.9151,0.000104,2]
[334317458,1722961832271,-1539.59144,0.000104,2]
[334317459,1722961832280,-164.49385076,0.000104,2]
[334317460,1722961832290,-160.96671387,0.000104,2]
[334317461,1722961832299,-358.27083369,0.000104,2]
[334317462,1722961832308,-222.9761057,0.000104,2]
[334317463,1722961832317,-326.2802915,0.000104,2]
[334317464,1722961832327,-986.29636374,0.000104,2]
[334317465,1722961832336,-180.72,0.00010427,2]
[334317466,1722961832345,-200.0,0.00010473,2]
[334317467,1722961832355,-200.0,0.00010473,2]
[334317468,1722961832366,-200.0,0.00010473,2]
[334317469,1722961832375,-198320.22187875,0.0001049,3]
[334317470,1722961832384,-14069.94971281,0.00010499,2]
[334317471,1722961832393,-70694.5270047,0.000105,2]
[334317472,1722961832409,-315.04,0.000105,2]
[334317480,1722961837720,-167.15,0.00010239,2]
[334317481,1722961837730,-270.84000014,0.00010497,2]
[334317482,1722961837740,-5095.36431212,0.000105,2]
[334317483,1722961837751,-264.24,0.000105,2]
[334317484,1722961837762,-12724.02931398,0.000105,2]
[334317485,1722961837787,-29935.38492875,0.000105,2]
[334317507,1722961840251,-87970.90222272,0.000105,2]
[334317508,1722961840265,-356.216,0.000105,2]
[334317509,1722961840278,-1904.38070088,0.000105,2]
[334317510,1722961840291,-5690.0574,0.000105,2]
[334317511,1722961840303,-5063.96244553,0.000105,2]
[334317513,1722961840315,-77365.45188419,0.000105,2]
[334317515,1722961840326,-400.4380872,0.000105,2]
[334317518,1722961840350,-312.004999,0.000105,2]
[334317650,1722961842764,-2114.66652841,0.000105,2]
[334317655,1722961842825,-635.81454119,0.000105,2]
[334317656,1722961842938,-452.628,0.000105,2]
[334317697,1722961846244,-545.40061468,0.000105,2]
[334317713,1722961846323,-284393.84137855,0.000105,2]
[334317719,1722961846353,-2848.43486148,0.000105,2]
[334317721,1722961846364,-338.59923021,0.000105,2]
[334317728,1722961846432,-5675.7,0.000105,2]
[334317834,1722961998572,162.64,8.219e-05,2]
[334317838,1722962615610,159.1,9.432e-05,2]
[334317839,1722962624988,154.5,8.219e-05,2]
[334317841,1722962660618,762.0,0.00027,120]
[334317882,1722962969263,8870.98653472,9.432e-05,2]
[334317883,1722962969285,10000.0,9.432e-05,2]
[334317884,1722962969309,2634.55346528,9.432e-05,2]
[334317906,1722963031874,-183.95,9.744e-05,2]
[334317908,1722963031883,-1000.0,9.863e-05,2]
[334317910,1722963031893,-302.44,0.00010027,2]
[334317911,1722963031902,-438.2276,0.000103,2]
[334317913,1722963031913,-588.46310557,0.000103,2]
[334317915,1722963031923,-588.46310553,0.00010325,2]
[334317917,1722963031932,-588.46310553,0.0001035,2]
[334317918,1722963031942,-588.46310553,0.00010375,2]
[334317920,1722963031950,-150.0,0.00010388,2]
[334317922,1722963031960,-300.0,0.00010388,2]
[334317923,1722963031969,-1671.83220681,0.00010389,2]
[334317924,1722963031978,-246.23373877,0.00010389,2]
[334317925,1722963032045,-949.59013625,0.00010389,2]
[334317926,1722963032056,-925.07724057,0.00010389,2]
[334317927,1722963032071,-5854.9058077,0.00010389,2]
[334317928,1722963032083,-9623.30318227,0.00010389,2]
[334317929,1722963032093,-2376.69681773,0.00010389,2]
[334317930,1722963032104,-1891.96129736,0.00010389,2]
[334317931,1722963032124,-423.56713528,0.00010389,2]
[334317932,1722963032135,-2287.63474963,0.00010389,2]
[334317933,1722963032145,-2829.13863339,0.0001039,2]
[334317934,1722963032157,-2100.0,0.0001039,2]
[334317935,1722963032173,-66935.30056661,0.0001039,2]
[334317936,1722963032183,-3363.4054,0.000104,2]
[334317937,1722963032192,-2000.0,0.000104,2]
[334317938,1722963032208,-245000.0,0.000104,2]
[334317939,1722963032218,-31398.3956,0.000104,2]
[334317940,1722963032227,-657.53090916,0.000104,2]
[334317941,1722963032236,-238.84722246,0.000104,2]
[334317942,1722963032245,-588.46310553,0.000104,2]
[334317943,1722963032254,-154.5,0.00010464,2]
[334317944,1722963032264,-200.0,0.00010473,2]
[334317945,1722963032273,-200.0,0.00010473,2]
[334317946,1722963032282,-688.4578694,0.00010493,2]
[334317948,1722963032291,-274.281615,0.00010493,2]
[334317950,1722963032300,-690.90789849,0.00010493,2]
[334317952,1722963032312,-150.0,0.00010493,2]
[334317954,1722963032322,-150.0,0.00010493,2]
[334317957,1722963032334,-712.54,0.00010493,2]
[334317960,1722963032343,-379.34,0.00010493,2]
[334317963,1722963032353,-925.31,0.00010493,2]
[334317966,1722963032363,-1983.94063172,0.00010499,2]
[334317969,1722963032374,-25537.74888008,0.00010499,2]
[334317971,1722963032383,-68021.62840475,0.000105,2]
[334317973,1722963032395,-11693.05854522,0.000105,2]
[334317975,1722963032407,-2116.94139513,0.000105,2]
[334318009,1722963037903,-326.2802915,0.000104,2]
[334318010,1722963037913,-200.0,0.00010473,2]
[334318011,1722963037923,-1322.62708782,0.00010499,2]
[334318012,1722963037932,-13290.99984468,0.000105,2]
[334318013,1722963037944,-1364.83123837,0.000105,2]
[334318014,1722963038071,-29624.0,0.000105,2]
[334318015,1722963038084,-1069.59890426,0.000105,2]
[334318016,1722963038128,-318947.6500486,0.000105,2]
[334318017,1722963038140,-5039.89913692,0.000105,2]
[334318041,1722963039956,-770.61174979,0.000105,2]
[334318045,1722963040201,-18964.24116087,0.000105,2]
[334318048,1722963040214,-2437.39358701,0.000105,2]
[334318050,1722963040227,-412.39,0.000105,2]
[334318052,1722963040239,-1049.98907542,0.000105,2]
[334318054,1722963040252,-975.50742252,0.000105,2]
[334318057,1722963040265,-807.664508,0.000105,2]
[334318059,1722963040278,-957.39475018,0.000105,2]
[334318061,1722963040291,-6823.83812117,0.000105,2]
[334318064,1722963040303,-34800.0,0.000105,2]
[334318066,1722963040319,-15600.38977752,0.000105,2]
[334318068,1722963040339,-1129.10829927,0.000105,2]
[334318070,1722963040351,-5695.60000005,0.000105,2]
[334318073,1722963040371,-470.89476816,0.000105,2]
[334318076,1722963040383,-485.3980518,0.000105,2]
[334318078,1722963040394,-259.90490269,0.000105,2]
[334318079,1722963040407,-711.3485025,0.000105,2]
[334318080,1722963040419,-36679.03748228,0.000105,2]
[334318081,1722963040438,-308.94361421,0.000105,2]
[334318082,1722963040479,-881.75139188,0.00010499,2]
[334318083,1722963040489,-594.34860812,0.000105,2]
[334318084,1722963040501,-814.42952318,0.000105,2]
[334318192,1722963043013,-5759.89368103,0.000105,2]
[334318194,1722963043025,-489.18296135,0.000105,2]
[334318196,1722963043037,-362.76485203,0.000105,2]
[334318199,1722963043050,-6010.00468618,0.000105,2]
[334318201,1722963043064,-93897.69089796,0.000105,2]
[334318203,1722963043075,-1374.75892983,0.000105,2]
[334318212,1722963043182,-7785.53683929,0.000105,2]
[334318213,1722963043194,-2179.86755184,0.000105,2]
[334318253,1722963043770,-373.5132,0.000105,2]
[334318382,1722963047388,-274.68725396,0.00010499,2]
[334318384,1722963047400,-313.14700729,0.00010499,2]
[334318386,1722963047411,-590840.92948797,0.000105,2]
[334318388,1722963047423,-3786.3788085,0.000105,2]
[334318482,1722963100510,154.5,8.219e-05,2]
[334318487,1722963124157,157.78,9.432e-05,2]
[334318495,1722963550617,50000.0,0.00025,60]
[334318496,1722963615557,154.5,8.219e-05,2]
[334318497,1722963672586,6898.66653472,8.219e-05,2]
[334318498,1722963672608,10000.0,8.219e-05,2]
[334318499,1722963672631,10000.0,8.219e-05,2]
[334318500,1722963672660,8588.17274123,8.219e-05,2]
[334318501,1722963684420,938.6495,9.544e-05,2]
[334318529,1722964127324,153.35,8.219e-05,2]
[334318547,1722964198576,185.5512,9.544e-05,2]
[334318558,1722964232259,-3750.7873,9.644e-05,2]
[334318559,1722964232282,-484.55762474,9.644e-05,2]
[334318560,1722964232294,-3147.20989937,9.644e-05,2]
[334318561,1722964232305,-682.79637589,9.644e-05,2]
[334318562,1722964232315,-200.0,9.756e-05,2]
[334318563,1722964232325,-273.51,9.816e-05,2]
[334318564,1722964232335,-800.0,9.843e-05,2]
[334318565,1722964232344,-300.0,0.0001013,2]
[334318566,1722964232354,-3818.69362411,0.00010131,2]
[334318567,1722964232365,-700.0,0.00010131,2]
[334318593,1722964238077,-456.5533328,0.00010131,2]
[334318594,1722964238088,-170.21,0.0001015,2]
[334318595,1722964238097,-10877.6150086,0.000103,2]
[334318596,1722964238110,-10905.9975914,0.000103,2]
[334318597,1722964238121,-7515.4207,0.000103,2]
[334318598,1722964238132,-1925.0,0.00010372,2]
[334318599,1722964238142,-810.0,0.00010372,2]
[334318600,1722964238151,-150.0,0.00010372,2]
[334318601,1722964238161,-685.929,0.00010372,2]
[334318602,1722964238171,-499.99,0.00010372,2]
[334318603,1722964238181,-550.0,0.00010372,2]
[334318604,1722964238191,-1893.0,0.00010372,2]
[334318605,1722964238200,-150.0,0.00010372,2]
[334318606,1722964238210,-3289.0,0.00010372,2]
[334318607,1722964238219,-1154.0,0.00010372,2]
[334318608,1722964238229,-2681.9773,0.00010398,2]
[334318609,1722964238239,-1000.0,0.00010399,2]
[334318610,1722964238249,-150.99,0.00010399,2]
[334318611,1722964238258,-169.48643277,0.000104,2]
[334318612,1722964238268,-341.3992,0.000104,2]
[334318613,1722964238279,-4790.7993,0.000104,2]
[334318614,1722964238289,-176.21753282,0.000104,2]
[334318615,1722964238298,-192.67548378,0.000104,2]
[334318616,1722964238307,-326.2802915,0.000104,2]
[334318617,1722964238317,-153.35,0.00010463,2]
[334318618,1722964238327,-215.9049831,0.00010473,2]
[334318619,1722964238337,-200.0,0.00010473,2]
[334318620,1722964238347,-200.0,0.00010473,2]
[334318621,1722964238356,-183.7723538,0.00010493,2]
[334318622,1722964238367,-2914.5444276,0.00010493,2]
[334318623,1722964238376,-5086.97445602,0.00010498,2]
[334318624,1722964238387,-6222.90702821,0.00010498,2]
[334318625,1722964238399,-265.615,0.00010498,2]
[334318626,1722964238412,-2550.0,0.00010498,2]
[334318627,1722964238427,-758.11221771,0.00010498,2]
[334318628,1722964238439,-987.45743925,0.00010498,2]
[334318629,1722964238451,-366.66146129,0.00010498,2]
[334318630,1722964238463,-376.259104,0.00010498,2]
[334318631,1722964238475,-569.76,0.00010498,2]
[334318632,1722964238492,-395.52138118,0.00010498,2]
[334318634,1722964238504,-1388.09553447,0.00010498,2]
[334318658,1722964240290,-2495.7200772,0.00010498,2]
[334318664,1722964240737,-223.20852524,0.00010498,2]
[334318667,1722964240754,-1372.44921534,0.00010498,2]
[334318669,1722964240768,-1152.19437216,0.00010498,2]
[334318671,1722964240779,-255.095,0.00010498,2]
[334318742,1722964244284,-21666.85664395,0.00010498,2]
[334318743,1722964244294,-391.8895075,0.00010499,2]
[334318744,1722964244303,-34980.7408491,0.00010499,2]
[334318772,1722964246337,-579.79786061,0.00010499,2]
[334318773,1722964246568,-214439.46129029,0.00010499,2]
[334318774,1722964246578,-431205.61760966,0.000105,2]
[334319318,1722964399575,2000.0,0.00025,60]
[334319319,1722964480714,500.0,0.00025,60]
[334319321,1722964570729,500.0,0.00025,60]
[334319322,1722964680751,500.0,0.00025,60]
[334319323,1722964756939,153.35,8.219e-05,2]
[334319324,1722964780224,500.0,0.00025,60]
[334319325,1722964813274,500.0,0.00025,60]
[334319326,1722964819142,371.64407358,8.219e-05,2]
[334319329,1722965149924,-160.0,9.86e-05,2]
[334319330,1722965149950,-157.78,9.882e-05,2]
[334319331,1722965149974,-216.31,9.896e-05,2]
[334319332,1722965149998,-840.0,9.919e-05,2]
[334319333,1722965150021,-300.0,0.00010398,2]
[334319334,1722965150046,-5513.3616,0.00010399,2]
[334319335,1722965150068,-769.7598,0.00010399,2]
[334319336,1722965150097,-673.8537,0.00010399,2]
[334319337,1722965150119,-1161.1655,0.00010399,2]
[334319338,1722965150146,-500.0,0.00010399,2]
[334319339,1722965150169,-150.0,0.00010399,2]
[334319340,1722965150193,-164.61705305,0.000104,2]
[334319341,1722965150216,-352.43506564,0.000104,2]
[334319342,1722965150238,-193.64669932,0.000104,2]
[334319343,1722965150259,-2026.61864071,0.000104,2]
[334319344,1722965150281,-200.0,0.00010473,2]
[334319345,1722965150303,-200.0,0.00010473,2]
[334319346,1722965150326,-13785.45194128,0.0001049,3]
[334319354,1722965318134,153.35,8.219e-05,2]
[334319367,1722965432356,-181.74161447,0.0001,2]
[334319368,1722965432366,-257.238209,0.0001039,2]
[334319369,1722965432380,-1470.496991,0.0001039,2]
[334319370,1722965432389,-358.45931784,0.000104,2]
[334319371,1722965432400,-188.29170795,0.000104,2]
[334319372,1722965432410,-559.39684048,0.0001047,2]
[334319373,1722965432422,-535.04025308,0.0001047,2]
[334319374,1722965432472,-1169.40691084,0.0001047,2]
[334319375,1722965432483,-200.0,0.00010473,2]
[334319376,1722965432493,-300.0,0.00010489,2]
[334319377,1722965432502,-300.0,0.00010489,2]
[334319378,1722965432512,-150.0,0.00010489,2]
[334319379,1722965432522,-9779.59153123,0.0001049,3]
[334319380,1722965432534,-11678.24970213,0.0001049,3]
[334319381,1722965432560,-200.0,0.00010473,2]
[334319382,1722965432570,-6506.70000028,0.0001049,3]
[334319404,1722965438347,-1351.07909382,0.000104,2]
[334319405,1722965438356,-2422.04736818,0.0001049,3]
[334319406,1722965438367,-1634.69999995,0.0001049,3]
[334319407,1722965438501,-8177.77804251,0.0001049,3]
[334319408,1722965438512,-10088.21636614,0.0001049,3]
[334319410,1722965438523,-28481.1029,0.0001049,3]
[334319418,1722965441175,-21684.76753054,0.0001049,3]
[334319419,1722965441187,-358.34200066,0.0001049,3]
[334319420,1722965441947,-632.1,0.0001049,3]
[334319489,1722965443350,-1141.00982472,0.0001049,3]
[334319496,1722965443996,-1397.20428,0.000104,2]
[334319497,1722965444008,-891.4577921,0.0001049,3]
[334319504,1722965446913,-0.10672376,0.0001049,3]
[334319508,1722965825143,153.35,8.219e-05,2]
[334319509,1722966248715,216.34,9.432e-05,2]
[334319510,1722966291941,153.35,8.219e-05,2]
[334319541,1722966631488,-160.0,9.737e-05,2]
[334319543,1722966631498,-872.0,9.753e-05,2]
[334319545,1722966631512,-293.62,9.809e-05,2]
[334319547,1722966631522,-181.74161447,0.0001,2]
[334319549,1722966631532,-519.99371553,0.0001,2]
[334319551,1722966631556,-301.723643,0.0001,2]
[334319552,1722966631592,-883.54995,0.0001,2]
[334319553,1722966631603,-846.47,0.0001,2]
[334319554,1722966631615,-350.2299999,0.0001,2]
[334319555,1722966631627,-4645.03269157,0.0001,2]
[334319556,1722966631636,-788.7556,0.0001038,2]
[334319557,1722966631646,-280.851,0.0001038,2]
[334319558,1722966631655,-35.56373843,0.0001039,2]
[334319559,1722966631667,-510.45804069,0.0001039,2]
[334319560,1722966631680,-69.82582088,0.0001039,2]
[334319561,1722966631690,-1062.76633159,0.000104,2]
[334319562,1722966631699,-4.80167146,0.00010473,2]
[334319563,1722966631712,-195.19832854,0.00010473,2]
[334319564,1722966631721,-150.0,0.00010479,2]
[334319565,1722966631731,-290.77650909,0.0001048,2]
[334319566,1722966631743,-531.17276182,0.0001048,2]
[334319567,1722966631755,-10909.06374531,0.0001048,2]
[334319568,1722966631770,-11935.23239639,0.0001048,2]
[334319569,1722966631782,-5855.7499,0.0001048,2]
[334319571,1722966631796,-887.0557381,0.0001048,2]
[334319573,1722966631807,-11506.71936319,0.0001048,2]
[334319645,1722966638691,-200.0,0.00010473,2]
[334319646,1722966638700,-224.5,0.0001048,2]
[334319647,1722966638711,-1078.57609711,0.0001048,2]
[334319648,1722966638726,-13695.0,0.0001048,2]
[334319649,1722966638745,-31412.83424212,0.0001048,2]
[334319650,1722966638760,-5200.0,0.0001048,2]
[334319651,1722966638772,-684730.73270375,0.0001048,2]
[334319652,1722966638783,-904.09410377,0.0001048,2]
[334319653,1722966638795,-486.14080715,0.0001048,2]
[334319654,1722966638806,-420.0,0.0001048,2]
[334319655,1722966638820,-5680.0,0.0001048,2]
[334319656,1722966638831,-7113.79967692,0.0001048,2]
[334319657,1722966638842,-1099.61752224,0.0001048,2]
[334319658,1722966638853,-3483.47384749,0.0001048,2]
[334319664,1722966639571,-933.43431332,0.0001048,2]
[334319665,1722966639734,-4441.538547,0.0001048,2]
[334319667,1722966639747,-568.54,0.0001048,2]
[334319669,1722966639760,-2765.23738804,0.0001048,2]
[334319670,1722966639773,-2633.837495,0.0001048,2]
[334319671,1722966640211,-2330.693685,0.0001048,2]
[334319672,1722966640225,-2465.903535,0.0001048,2]
[334319673,1722966640237,-1585.13000004,0.0001048,2]
[334319674,1722966640248,-5184.20181618,0.0001048,2]
[334319675,1722966640263,-1810.27633003,0.0001048,2]
[334319676,1722966640274,-683.05399936,0.0001048,2]
[334319677,1722966640298,-250.86,0.0001048,2]
[334319678,1722966640309,-220743.53125172,0.0001048,2]
[334319680,1722966640320,-130650.90536236,0.0001048,2]
[334319682,1722966640331,-2591.21572983,0.0001048,2]
[334319730,1722966643229,-44957.5730287,0.0001048,2]
[334319731,1722966643240,-131685.76358714,0.0001048,2]
[334319732,1722966643251,-7982.64594648,0.0001048,2]
[334319733,1722966643262,-32169.23916459,0.0001048,2]
[334319734,1722966643273,-9590.6865488,0.0001048,2]
[334319735,1722966643284,-3090.37757266,0.0001048,2]
[334319736,1722966643296,-3563.9999998,0.0001048,2]
[334319737,1722966643308,-7464.61812972,0.0001048,2]
[334319738,1722966643328,-1013.62851621,0.0001048,2]
[334319744,1722966645720,-238.97287856,0.000104,2]
[334319745,1722966645729,-487.55079059,0.0001048,2]
[334319746,1722966645741,-965.71228603,0.0001048,2]
[334319747,1722966645753,-250.20375,0.0001048,2]
[334319748,1722966645796,-1998.967,0.0001048,2]
[334319749,1722966645807,-8401.03897866,0.0001048,2]
[334319750,1722966645823,-1100.30106581,0.0001048,2]
[334319751,1722966645850,-315.00000008,0.0001048,2]
[334319752,1722966645876,-716.1643484,0.0001048,2]
[334319753,1722966645906,-258.90026698,0.0001048,2]
[334319754,1722966645917,-3567.11591837,0.0001048,2]
[334319756,1722966646102,-295.59440001,0.0001048,2]
[334319757,1722966646114,-10019.09632223,0.0001048,2]
[334319758,1722966646125,-715.445001,0.0001048,2]
[334319759,1722966646137,-114907.23711986,0.0001048,2]
[334319760,1722966646146,-3146.35710338,0.00010488,2]
[334319761,1722966646156,-1164.3369,0.00010489,2]
[334319762,1722966646167,-25366.68788891,0.0001049,3]
[334319763,1722966646181,-184487.00611576,0.0001049,3]
[334319764,1722966646192,-449.34140696,0.0001049,2]
[334319765,1722966646204,-170.42026434,0.0001049,2]
[334319766,1722966646217,-299.83663058,0.0001049,2]
[334319769,1722966646228,-1050.16898216,0.0001049,2]
[334319771,1722966646238,-412.93992708,0.0001049,2]
[334319773,1722966646248,-162.65072108,0.0001049,2]
[334319775,1722966646258,-6512.1557026,0.00010493,2]
[334319777,1722966646268,-648.46403196,0.00010493,2]
[334319779,1722966646278,-1739.4488389,0.00010493,2]
[334319782,1722966646288,-153.1436282,0.00010493,2]
[334319785,1722966646298,-781.0,0.00010493,2]
[334319788,1722966646307,-2812.0,0.00010493,2]
[334319791,1722966646317,-74353.0,0.00010493,2]
[334319794,1722966646326,-579.0,0.00010493,2]
[334319796,1722966646335,-391.8895075,0.00010499,2]
[334319798,1722966646345,-78639.02290576,0.00010499,2]
[334319800,1722966646354,-250000.0,0.00010499,2]
[334319802,1722966646363,-151.0,0.00010499,2]
[334319803,1722966646372,-151.0,0.00010499,2]
[334319804,1722966646381,-151.0,0.00010499,2]
[334319805,1722966646390,-151.0,0.00010499,2]
[334319806,1722966646399,-151.0,0.00010499,2]
[334319807,1722966646409,-151.0,0.00010499,2]
[334319808,1722966646419,-151.0,0.00010499,2]
[334319809,1722966646428,-284.865536,0.00010499,2]
[334319810,1722966646438,-7154.46288562,0.000105,2]
[334319811,1722966646449,-500.0,0.000105,2]
[334319820,1722966690077,363.62565954,8.219e-05,2]
[334319822,1722966695905,411.63443338,8.219e-05,2]
[334319828,1722966714393,1633.59875536,8.219e-05,2]
[334319829,1722966715094,230.64450184,8.219e-05,2]
[334319835,1722966766921,485.35658426,8.219e-05,2]
[334319842,1722966788586,199.33,8.219e-05,2]
[334319846,1722966802765,5135.52479204,8.219e-05,2]
[334319847,1722966802785,10000.0,8.219e-05,2]
[334319848,1722966802805,10000.0,8.219e-05,2]
[334319849,1722966803211,158482.70750177,8.219e-05,2]
[334319850,1722966805149,14353.97907086,8.219e-05,2]
[334319851,1722966806676,7573.35383779,8.219e-05,2]
[334319852,1722966809410,730.08585614,8.219e-05,2]
[334319863,1722966893142,4475.22839199,8.219e-05,2]
[334319864,1722966927976,20383.48369628,8.219e-05,2]
[334319865,1722967038983,17383.54054777,8.219e-05,2]
[334319866,1722967125713,160.06,7.708e-05,2]
[334319867,1722967271076,155.15699907,9.343e-05,2]
[334319868,1722967336463,398.04,9.535e-05,2]
[334319870,1722967374653,189.36,8.219e-05,2]
[334319876,1722967463322,10000.0,8.219e-05,2]
[334319877,1722967463343,10000.0,8.219e-05,2]
[334319878,1722967463365,10000.0,8.219e-05,2]
[334319879,1722967463388,22262.43713816,8.219e-05,2]
[334319880,1722967480512,926.28,9.533e-05,2]
[334319882,1722967516909,1284.22835153,8.219e-05,2]
[334319883,1722967524340,1009.17115723,8.219e-05,2]
[334319884,1722967552187,-201.24,9.582e-05,2]
[334319885,1722967552218,-201.24,9.63e-05,2]
[334319886,1722967552246,-234.9,9.643e-05,2]
[334319887,1722967552274,-1000.0,9.653e-05,2]
[334319888,1722967552300,-250.0,9.66e-05,2]
[334319889,1722967552328,-165.1,9.87e-05,2]
[334319890,1722967552356,-300.0,9.961e-05,2]
[334319891,1722967552382,-300.0,9.961e-05,2]
[334319892,1722967552408,-167.33918212,0.0001,2]
[334319893,1722967552434,-449.34140696,0.0001,2]
[334319894,1722967552460,-792.39,0.0001,2]
[334319895,1722967552487,-938.44941092,0.0001,2]
[334319896,1722967560590,172.03446218,5e-05,2]
[334319897,1722967583811,534.12654164,5e-05,2]
[334319900,1722967595327,155.0,5e-05,2]
[334319901,1722967598906,1284.43873341,5e-05,2]
[334319902,1722967604411,227.63850404,5e-05,2]
[334319903,1722967606104,-61.54058908,0.0001,2]
[334319904,1722967606131,-449.1653994,0.0001,2]
[334319905,1722967606157,-499.99,0.00010061,2]
[334319906,1722967606186,-1265.53362362,0.00010061,2]
[334319907,1722967606213,-818.7703879,0.0001037,2]
[334319908,1722967606260,155.0,5e-05,2]
[334319909,1722967616067,4252.08224997,5e-05,2]
[334319910,1722967616087,10000.0,5e-05,2]
[334319911,1722967616108,4961.58009881,5e-05,2]
[334319912,1722967617607,250.0,5e-05,2]
[334319913,1722967619409,262.18128558,5e-05,2]
[334319928,1722967667427,699.49291888,0.00027,120]
[334319929,1722967698720,-4178.0,0.0001037,2]
[334319988,1722967831721,-200.0,9.777e-05,2]
[334319989,1722967831731,-300.0,0.00010369,2]
[334319990,1722967831741,-782.83094332,0.0001037,2]
[334319991,1722967831750,-1284.55129819,0.0001037,2]
[334319992,1722967831760,-511.48011466,0.0001037,2]
[334319993,1722967831769,-412.93992708,0.0001037,2]
[334319994,1722967831779,-170.42026434,0.0001037,2]
[334319995,1722967831788,-485.31544336,0.0001037,2]
[334319996,1722967831798,-207.00138333,0.0001037,2]
[334319997,1722967831807,-692.92070415,0.0001037,2]
[334319998,1722967831817,-209.54219002,0.0001037,2]
[334319999,1722967831826,-162.65072108,0.0001037,2]
[334320000,1722967831835,-227.65723628,0.0001037,2]
[334320001,1722967831845,-110.38977419,0.0001037,2]
[334320002,1722967831857,-196.71089893,0.0001037,2]
[334320003,1722967831868,-170.42026434,0.0001037,2]
[334320004,1722967831878,-227.65723628,0.0001037,2]
[334320005,1722967831887,-299.83663058,0.0001037,2]
[334320006,1722967831897,-150.0,0.00010379,2]
[334320007,1722967831906,-1858.62496987,0.0001038,2]
[334320008,1722967831919,-1501.45563013,0.0001038,2]
[334320009,1722967831932,-1184.241,0.0001038,2]
[334320010,1722967831941,-7922.77622075,0.0001038,2]
[334320012,1722967831953,-1282.01565883,0.0001038,2]
[334320014,1722967831968,-1443.6854515,0.0001038,2]
[334320016,1722967831980,-11631.4198,0.0001038,2]
[334320017,1722967831992,-964.45416759,0.0001038,2]
[334320018,1722967832013,-8057.35870133,0.0001038,2]
[334320019,1722967832022,-511.62,0.0001038,2]
[334320020,1722967832033,-299.99,0.0001038,2]
[334320022,1722967832042,-150.8736,0.00010384,2]